{"text_format":"3","workbook":"xlsx","n_sheets":2,"sheets":["Liste for lærer"," Listedata"],"not_rendered":{"defined_names":6},"read":"whole","date_system":"1900"}

{"sheet":"Liste for lærer","index":0,"n_rows":10,"n_cols":10,"rows_kept":10,"merged":[[0,1,0,2],[0,4,0,8],[2,9,6,9]]}
[null,"Liste for lærer",null,"Listedata","Fargeforklaring for Status vises i denne cellen: Ikke startet er den normale stilen, Pågår er R=91 G=133 B=49, Forfaller i dag er R=118 G=88 B=0, På vent er R=109 G=66 B=111, Fullført er gjennomstreking, Avbrutt er R=191 G=191 B=191 og Forfalt er R=191 G=33 B=28."]
[null,"ARTIKKEL","KATEGORI","STARTDATO","FORFALLSDATO","GJENVÆRENDE DAGER","STATUS","NOTATER"]
[null,"Tøm skuffer","Office",{"$f":"DATE(YEAR(TODAY()),MONTH(TODAY())-1,6)","v":"2018-04-06"},{"$f":"DATE(YEAR(TODAY()),MONTH(TODAY())-1,16)","v":"2018-04-16"},{"$f":"IFERROR(IF(COUNT(Liste[[#This Row],[STARTDATO]]:Liste[[#This Row],[FORFALLSDATO]])<>2,\"\",IF(OR(Liste[[#This Row],[STATUS]]=\"Fullført\",Liste[[#This Row],[STATUS]]=\"Avbrutt\",Liste[[#This Row],[STATUS]]=\"På vent\"),\"\",Liste[[#This Row],[FORFALLSDATO]]-TODAY())),\"\")","v":""},"Fullført",null,null,"Statussliceren er i denne cellen. Hvis du vil filtrere listen etter Status, velger du en status fra sliceren. Trykk på og hold nede CTRL for å velge flere alternativer."]
[null,"Bestill klistremerker","Utstyr",{"$f":"DATE(YEAR(TODAY()),MONTH(TODAY())-1,11)","v":"2018-04-11"},{"$f":"DATE(YEAR(TODAY()),MONTH(TODAY())-1,21)","v":"2018-04-21"},{"$f":"IFERROR(IF(COUNT(Liste[[#This Row],[STARTDATO]]:Liste[[#This Row],[FORFALLSDATO]])<>2,\"\",IF(OR(Liste[[#This Row],[STATUS]]=\"Fullført\",Liste[[#This Row],[STATUS]]=\"Avbrutt\",Liste[[#This Row],[STATUS]]=\"På vent\"),\"\",Liste[[#This Row],[FORFALLSDATO]]-TODAY())),\"\")","v":""},"Fullført"]
[null,"Gulv er vasket og vokset","Annet",{"$f":"DATE(YEAR(TODAY()),MONTH(TODAY()-1),DAY(TODAY())-25)","v":"2018-04-14"},{"$f":"DATE(YEAR(TODAY()),MONTH(TODAY())-1,26)","v":"2018-04-26"},{"$f":"IFERROR(IF(COUNT(Liste[[#This Row],[STARTDATO]]:Liste[[#This Row],[FORFALLSDATO]])<>2,\"\",IF(OR(Liste[[#This Row],[STATUS]]=\"Fullført\",Liste[[#This Row],[STATUS]]=\"Avbrutt\",Liste[[#This Row],[STATUS]]=\"På vent\"),\"\",Liste[[#This Row],[FORFALLSDATO]]-TODAY())),\"\")","v":""},"Fullført"]
[null,"Navnelapper opprettet","Utstyr",{"$f":"DATE(YEAR(TODAY()),MONTH(TODAY())-1,21)","v":"2018-04-21"},{"$f":"DATE(YEAR(TODAY()),MONTH(TODAY())-1,1)","v":"2018-04-01"},{"$f":"IFERROR(IF(COUNT(Liste[[#This Row],[STARTDATO]]:Liste[[#This Row],[FORFALLSDATO]])<>2,\"\",IF(OR(Liste[[#This Row],[STATUS]]=\"Fullført\",Liste[[#This Row],[STATUS]]=\"Avbrutt\",Liste[[#This Row],[STATUS]]=\"På vent\"),\"\",Liste[[#This Row],[FORFALLSDATO]]-TODAY())),\"\")","v":""},"På vent"]
[null,"Sett karakter på kvartalsrapporter","Vurderinger",{"$f":"DATE(YEAR(TODAY()),MONTH(TODAY())-1,26)","v":"2018-04-26"},{"$f":"TODAY()-5","v":"2018-05-04"},{"$f":"IFERROR(IF(COUNT(Liste[[#This Row],[STARTDATO]]:Liste[[#This Row],[FORFALLSDATO]])<>2,\"\",IF(OR(Liste[[#This Row],[STATUS]]=\"Fullført\",Liste[[#This Row],[STATUS]]=\"Avbrutt\",Liste[[#This Row],[STATUS]]=\"På vent\"),\"\",Liste[[#This Row],[FORFALLSDATO]]-TODAY())),\"\")","v":-5},"Forfalt"]
[null,"E-postpåminnelse for tillatelselapper","Telefonsamtaler",{"$f":"DATE(YEAR(TODAY()),MONTH(TODAY()),1)","v":"2018-05-01"},{"$f":"TODAY()","v":"2018-05-09"},{"$f":"IFERROR(IF(COUNT(Liste[[#This Row],[STARTDATO]]:Liste[[#This Row],[FORFALLSDATO]])<>2,\"\",IF(OR(Liste[[#This Row],[STATUS]]=\"Fullført\",Liste[[#This Row],[STATUS]]=\"Avbrutt\",Liste[[#This Row],[STATUS]]=\"På vent\"),\"\",Liste[[#This Row],[FORFALLSDATO]]-TODAY())),\"\")","v":""},"Avbrutt"]
[null,"Sett karakter på muntlige rapporter","Office",{"$f":"DATE(YEAR(TODAY()),MONTH(TODAY()),7)","v":"2018-05-07"},{"$f":"DATE(YEAR(TODAY()),MONTH(TODAY()),17)","v":"2018-05-17"},{"$f":"IFERROR(IF(COUNT(Liste[[#This Row],[STARTDATO]]:Liste[[#This Row],[FORFALLSDATO]])<>2,\"\",IF(OR(Liste[[#This Row],[STATUS]]=\"Fullført\",Liste[[#This Row],[STATUS]]=\"Avbrutt\",Liste[[#This Row],[STATUS]]=\"På vent\"),\"\",Liste[[#This Row],[FORFALLSDATO]]-TODAY())),\"\")","v":8},"Pågår"]
[null,"Spiss blyanter","Utstyr",{"$f":"DATE(YEAR(TODAY()),MONTH(TODAY()),11)","v":"2018-05-11"},{"$f":"DATE(YEAR(TODAY()),MONTH(TODAY()),10)","v":"2018-05-10"},{"$f":"IFERROR(IF(COUNT(Liste[[#This Row],[STARTDATO]]:Liste[[#This Row],[FORFALLSDATO]])<>2,\"\",IF(OR(Liste[[#This Row],[STATUS]]=\"Fullført\",Liste[[#This Row],[STATUS]]=\"Avbrutt\",Liste[[#This Row],[STATUS]]=\"På vent\"),\"\",Liste[[#This Row],[FORFALLSDATO]]-TODAY())),\"\")","v":1},"Pågår"]

{"sheet":" Listedata","index":1,"n_rows":13,"n_cols":3,"rows_kept":13}
[null,"Listedata","Liste for lærer"]
[null,"Kategori"]
[null,"Office"]
[null,"Utstyr"]
[null,"Ting som skal kjøpes"]
[null,"Telefonsamtaler"]
[null,"Nye ideer"]
[null,"Vurderinger"]
[null,"Team"]
[null,"Inngrep"]
[null,"Datamaskin"]
[null,"Personlig"]
[null,"Annet"]